fUST/lending_fUST_20240806
["ID","MTS","AMOUNT","RATE_DAILY","PERIOD"]
[334293700,1722916239674,-354.0,0.00038356,14]
[334293701,1722916239684,-354.0,0.00038356,14]
[334293702,1722916239693,-354.0,0.00038356,14]
[334293703,1722916239703,-354.0,0.00038356,14]
[334293704,1722916239712,-354.0,0.00038356,14]
[334293705,1722916239721,-650.0,0.00038356,14]
[334293706,1722916239731,-650.0,0.00038356,14]
[334293707,1722916239740,-650.0,0.00038356,14]
[334293708,1722916239749,-650.0,0.00038356,14]
[334293709,1722916239758,-650.0,0.00038356,14]
[334293710,1722916239767,-650.0,0.00038356,14]
[334293711,1722916239776,-650.0,0.00038356,14]
[334293712,1722916239786,-650.0,0.00038356,14]
[334293713,1722916239795,-650.0,0.00038356,14]
[334293714,1722916239804,-650.0,0.00038356,14]
[334293715,1722916239814,-650.0,0.00038356,14]
[334293716,1722916239823,-650.0,0.00038356,14]
[334293717,1722916239832,-650.0,0.00038356,14]
[334293718,1722916239842,-650.0,0.00038356,14]
[334293719,1722916239851,-354.0,0.00038356,14]
[334293720,1722916239860,-354.0,0.00038356,14]
[334293721,1722916239869,-354.0,0.00038356,14]
[334293722,1722916239879,-354.0,0.00038356,14]
[334293723,1722916239888,-354.0,0.00038356,14]
[334293724,1722916239897,-354.0,0.00038356,14]
[334293725,1722916239907,-354.0,0.00038356,14]
[334293726,1722916239916,-354.0,0.00038356,14]
[334293727,1722916239925,-354.0,0.00038356,14]
[334293728,1722916239934,-354.0,0.00038356,14]
[334293729,1722916239943,-354.0,0.00038356,14]
[334293730,1722916239953,-354.0,0.00038356,14]
[334293731,1722916239963,-354.0,0.00038356,14]
[334293732,1722916239973,-354.0,0.00038356,14]
[334293733,1722916239982,-650.0,0.00038356,14]
[334293734,1722916239992,-650.0,0.00038356,14]
[334293735,1722916240001,-650.0,0.00038356,14]
[334293736,1722916240011,-650.0,0.00038356,14]
[334293737,1722916240021,-650.0,0.00038356,14]
[334293738,1722916240030,-650.0,0.00038356,14]
[334293739,1722916240040,-650.0,0.00038356,14]
[334293740,1722916240049,-650.0,0.00038356,14]
[334293741,1722916240059,-650.0,0.00038356,14]
[334293742,1722916240068,-650.0,0.00038356,14]
[334293744,1722916240077,-650.0,0.00038356,14]
[334293746,1722916240087,-650.0,0.00038356,14]
[334293747,1722916240096,-650.0,0.00038356,14]
[334293748,1722916240106,-650.0,0.00038356,14]
[334293749,1722916240118,-354.0,0.00038356,14]
[334293750,1722916240128,-354.0,0.00038356,14]
[334293751,1722916240137,-354.0,0.00038356,14]
[334293752,1722916240146,-354.0,0.00038356,14]
[334293754,1722916240156,-354.0,0.00038356,14]
[334293756,1722916240166,-354.0,0.00038356,14]
[334293757,1722916240176,-354.0,0.00038356,14]
[334293758,1722916240185,-354.0,0.00038356,14]
[334293759,1722916240197,-354.0,0.00038356,14]
[334293760,1722916240207,-354.0,0.00038356,14]
[334293761,1722916240216,-354.0,0.00038356,14]
[334293762,1722916240225,-354.0,0.00038356,14]
[334293763,1722916240234,-354.0,0.00038356,14]
[334293764,1722916240243,-354.0,0.00038356,14]
[334293765,1722916240252,-650.0,0.00038356,14]
[334293766,1722916240261,-650.0,0.00038356,14]
[334293767,1722916240270,-650.0,0.00038356,14]
[334293768,1722916240279,-650.0,0.00038356,14]
[334293769,1722916240289,-650.0,0.00038356,14]
[334293770,1722916240299,-650.0,0.00038356,14]
[334293771,1722916240308,-650.0,0.00038356,14]
[334293772,1722916240318,-650.0,0.00038356,14]
[334293774,1722916240326,-650.0,0.00038356,14]
[334293776,1722916240336,-650.0,0.00038356,14]
[334293778,1722916240345,-650.0,0.00038356,14]
[334293780,1722916240354,-650.0,0.00038356,14]
[334293781,1722916240363,-650.0,0.00038356,14]
[334293782,1722916240373,-650.0,0.00038356,14]
[334293783,1722916240382,-354.0,0.00038356,14]
[334293784,1722916240391,-354.0,0.00038356,14]
[334293785,1722916240400,-354.0,0.00038356,14]
[334293786,1722916240410,-354.0,0.00038356,14]
[334293787,1722916240419,-354.0,0.00038356,14]
[334293788,1722916240428,-354.0,0.00038356,14]
[334293789,1722916240437,-354.0,0.00038356,14]
[334293790,1722916240447,-354.0,0.00038356,14]
[334293791,1722916240456,-354.0,0.00038356,14]
[334293793,1722916240466,-354.0,0.00038356,14]
[334293794,1722916240475,-354.0,0.00038356,14]
[334293795,1722916240485,-354.0,0.00038356,14]
[334293796,1722916240494,-354.0,0.00038356,14]
[334293797,1722916240503,-354.0,0.00038356,14]
[334293798,1722916240512,-650.0,0.00038356,14]
[334293799,1722916240521,-650.0,0.00038356,14]
[334293800,1722916240530,-650.0,0.00038356,14]
[334293801,1722916240539,-650.0,0.00038356,14]
[334293802,1722916240548,-650.0,0.00038356,14]
[334293803,1722916240558,-650.0,0.00038356,14]
[334293804,1722916240567,-650.0,0.00038356,14]
[334293805,1722916240577,-650.0,0.00038356,14]
[334293806,1722916240586,-650.0,0.00038356,14]
[334293807,1722916240595,-650.0,0.00038356,14]
[334293808,1722916240604,-650.0,0.00038356,14]
[334293809,1722916240613,-650.0,0.00038356,14]
[334293810,1722916240622,-650.0,0.00038356,14]
[334293811,1722916240631,-650.0,0.00038356,14]
[334293812,1722916240640,-354.0,0.00038356,14]
[334293813,1722916240650,-354.0,0.00038356,14]
[334293814,1722916240659,-354.0,0.00038356,14]
[334293815,1722916240668,-354.0,0.00038356,14]
[334293816,1722916240678,-354.0,0.00038356,14]
[334293817,1722916240687,-354.0,0.00038356,14]
[334293818,1722916240696,-354.0,0.00038356,14]
[334293819,1722916240707,-354.0,0.00038356,14]
[334293820,1722916240716,-354.0,0.00038356,14]
[334293821,1722916240725,-354.0,0.00038356,14]
[334293822,1722916240734,-354.0,0.00038356,14]
[334293823,1722916240744,-354.0,0.00038356,14]
[334293824,1722916240753,-354.0,0.00038356,14]
[334293825,1722916240762,-354.0,0.00038356,14]
[334293826,1722916240771,-650.0,0.00038356,14]
[334293827,1722916240780,-650.0,0.00038356,14]
[334293828,1722916240790,-650.0,0.00038356,14]
[334293829,1722916240799,-650.0,0.00038356,14]
[334293830,1722916240808,-650.0,0.00038356,14]
[334293831,1722916240818,-650.0,0.00038356,14]
[334293832,1722916240827,-650.0,0.00038356,14]
[334293833,1722916240836,-650.0,0.00038356,14]
[334293834,1722916240845,-650.0,0.00038356,14]
[334293835,1722916240855,-650.0,0.00038356,14]
[334293836,1722916240864,-650.0,0.00038356,14]
[334293837,1722916240873,-650.0,0.00038356,14]
[334293838,1722916240883,-650.0,0.00038356,14]
[334293839,1722916240893,-650.0,0.00038356,14]
[334293840,1722916240903,-354.0,0.00038356,14]
[334293841,1722916240912,-354.0,0.00038356,14]
[334293842,1722916240922,-354.0,0.00038356,14]
[334293843,1722916240933,-354.0,0.00038356,14]
[334293844,1722916240943,-354.0,0.00038356,14]
[334293845,1722916240953,-354.0,0.00038356,14]
[334293846,1722916240962,-354.0,0.00038356,14]
[334293847,1722916240971,-354.0,0.00038356,14]
[334293848,1722916240981,-354.0,0.00038356,14]
[334293849,1722916240991,-354.0,0.00038356,14]
[334293850,1722916241000,-650.0,0.00038356,14]
[334293851,1722916241008,-650.0,0.00038356,14]
[334293852,1722916241018,-650.0,0.00038356,14]
[334293853,1722916241027,-650.0,0.00038356,14]
[334293854,1722916241037,-650.0,0.00038356,14]
[334293855,1722916241046,-650.0,0.00038356,14]
[334293856,1722916241057,-650.0,0.00038356,14]
[334293857,1722916241067,-650.0,0.00038356,14]
[334293858,1722916241076,-650.0,0.00038356,14]
[334293859,1722916241085,-650.0,0.00038356,14]
[334293860,1722916241094,-3834.14330866,0.000384,2]
[334293861,1722916241103,-500.0,0.00038493,22]
[334293862,1722916241118,-1302.94499871,0.00038523,2]
[334293863,1722916241127,-30774.6423222,0.0003861,4]
[334293864,1722916241241,-1302.94499869,0.00038617,2]
[334293865,1722916241251,-30774.6423222,0.0003862,4]
[334293866,1722916241260,-500.0,0.00038629,60]
[334293867,1722916241269,-500.0,0.00038629,61]
[334293868,1722916241278,-194.87723215,0.00038629,62]
[334293869,1722916241288,-8868.0,0.0003863,120]
[334293870,1722916241297,-8868.0,0.0003863,120]
[334293871,1722916241307,-8642.5528813,0.0003863,120]
[334293872,1722916241334,-225.4471187,0.0003863,120]
[334293873,1722916241343,-8868.0,0.0003863,120]
[334293874,1722916241354,-8868.0,0.0003863,120]
[334293875,1722916241363,-500.0,0.0003863,24]
[334293876,1722916241372,-207.0547247,0.0003863,2]
[334293877,1722916241382,-207.0547247,0.0003863,2]
[334293878,1722916241391,-294.3442761,0.0003863,2]
[334293879,1722916241400,-294.3442761,0.0003863,2]
[334293880,1722916241410,-207.0547247,0.0003863,2]
[334293881,1722916241419,-588.6885522,0.0003863,2]
[334293882,1722916241429,-207.0547247,0.0003863,2]
[334293883,1722916241439,-294.3442761,0.0003863,2]
[334293884,1722916241449,-207.0547247,0.0003863,2]
[334293885,1722916241459,-207.0547247,0.0003863,2]
[334293886,1722916241469,-207.0547247,0.0003863,2]
[334293887,1722916241478,-207.0547247,0.0003863,2]
[334293888,1722916241489,-207.0547247,0.0003863,2]
[334293889,1722916241499,-207.0547247,0.0003863,2]
[334293890,1722916241509,-207.0547247,0.0003863,2]
[334293891,1722916241518,-207.0547247,0.0003863,2]
[334293892,1722916241528,-207.0547247,0.0003863,2]
[334293893,1722916241537,-205.2761175,0.0003863,2]
[334293894,1722916241547,-271.3686162,0.00038658,2]
[334293895,1722916241557,-271.3686162,0.00038658,2]
[334293896,1722916241566,-271.3686162,0.00038658,2]
[334293897,1722916241576,-271.3686162,0.00038658,2]
[334293898,1722916241586,-271.3686162,0.00038658,2]
[334293899,1722916241595,-271.3686162,0.00038658,2]
[334293900,1722916241605,-271.3686162,0.00038658,2]
[334293901,1722916241614,-271.3686162,0.00038658,2]
[334293902,1722916241623,-271.3686162,0.00038658,2]
[334293903,1722916241632,-271.3686162,0.00038658,2]
[334293904,1722916241641,-271.3686162,0.00038658,2]
[334293905,1722916241651,-271.3686162,0.00038658,2]
[334293906,1722916241660,-271.3686162,0.00038658,2]
[334293907,1722916241669,-271.3686162,0.00038658,2]
[334293908,1722916241678,-271.3686162,0.00038658,2]
[334293909,1722916241688,-271.3686162,0.00038658,2]
[334293910,1722916241698,-271.3686162,0.00038658,2]
[334293911,1722916241708,-271.3686162,0.00038658,2]
[334293912,1722916241717,-271.3686162,0.00038658,2]
[334293913,1722916241726,-271.3686162,0.00038658,2]
[334293914,1722916241735,-271.3686162,0.00038658,2]
[334293915,1722916241744,-271.3686162,0.00038658,2]
[334293916,1722916241753,-271.3686162,0.00038658,2]
[334293917,1722916241762,-271.3686162,0.00038658,2]
[334293918,1722916241771,-271.3686162,0.00038658,2]
[334293919,1722916241781,-271.3686162,0.00038658,2]
[334293920,1722916241790,-271.3686162,0.00038658,2]
[334293921,1722916241799,-271.3686162,0.00038658,2]
[334293922,1722916241808,-271.3686162,0.00038658,2]
[334293923,1722916241817,-271.3686162,0.00038658,2]
[334293924,1722916241826,-271.3686162,0.00038658,2]
[334293925,1722916241835,-271.3686162,0.00038658,2]
[334293926,1722916241844,-271.3686162,0.00038658,2]
[334293927,1722916241854,-271.3686162,0.00038658,2]
[334293928,1722916241863,-271.3686162,0.00038658,2]
[334293929,1722916241873,-271.3686162,0.00038658,2]
[334293930,1722916241883,-271.3686162,0.00038658,2]
[334293931,1722916241893,-271.3686162,0.00038658,2]
[334293932,1722916241903,-1302.94499869,0.00038712,2]
[334293933,1722916241912,-500.0,0.00038767,26]
[334293934,1722916241921,-30774.6423222,0.0003878,4]
[334293935,1722916241931,-2000.0,0.000388,2]
[334293936,1722916241940,-1302.94499869,0.00038806,2]
[334293937,1722916241951,-30774.6423222,0.0003887,4]
[334293938,1722916241961,-22541.89526203,0.0003888,60]
[334293939,1722916241971,-724.067027,0.0003888,14]
[334293940,1722916241986,-724.067027,0.0003888,14]
[334293941,1722916241998,-724.067027,0.0003888,14]
[334293942,1722916242010,-724.067027,0.0003888,14]
[334293943,1722916242024,-2763.76669651,0.0003888,21]
[334293944,1722916242035,-22000.73183828,0.0003888,4]
[334293996,1722916246927,-439.87202709,0.00026646,2]
[334293997,1722916246937,-271.3686162,0.00038658,2]
[334293998,1722916246947,-25165.63935671,0.0003888,4]
[334293999,1722916322863,163.25288,0.00014247,2]
[334294018,1722917051264,1636.26,0.0001401,2]
[334294020,1722917143180,-195.6718464,0.00014147,2]
[334294021,1722917143202,-14.54356099,0.00014247,2]
[334294022,1722917157119,-150.09295401,0.00014247,2]
[334294023,1722917157142,-371.2726837,0.00020721,2]
[334294024,1722917232118,-629.37616454,0.00020721,2]
[334294026,1722917236100,-347.02503107,0.00020721,2]
[334294027,1722917242094,-521.32730726,0.00020721,2]
[334294028,1722917244117,-1855.37263901,0.00020721,2]
[334294029,1722917250097,-261.04800834,0.00020721,2]
[334294030,1722917251146,-2157.36957401,0.00020721,2]
[334294031,1722917251167,-156.85069415,0.00021011,2]
[334294032,1722917251189,-245.3644212,0.00022,2]
[334294033,1722917251210,-202.10795032,0.00025116,2]
[334294034,1722917251232,-385.76908016,0.00025116,2]
[334294035,1722917251253,-154.72922386,0.00025116,2]
[334294036,1722917251277,-154.24,0.000266,31]
[334294037,1722917251298,-163.25288,0.00027884,2]
[334294038,1722917251322,-249.0,0.00028348,2]
[334294039,1722917251344,-1268.6896446,0.00028349,2]
[334294040,1722917251369,-154.77283277,0.00028549,2]
[334294042,1722917347111,-163.25288,0.00014247,2]
[334294044,1722917364344,-153.82487277,0.00021916,2]
[334294045,1722917368147,-4.094743,0.00021916,2]
[334294046,1722917368167,-155.02218063,0.00021916,2]
[334294074,1722917434393,105.85789868,0.00021916,2]
[334294075,1722917434414,185.3809215,0.00021916,2]
[334294095,1722917438755,-3889.13569486,0.00021916,2]
[334294097,1722917438765,-200.0,0.00028411,15]
[334294099,1722917438774,-189.55103082,0.00028549,2]
[334294101,1722917438784,-170.238506,0.00028656,2]
[334294103,1722917438793,-380.0,0.00028947,2]
[334294105,1722917438803,-242.0,0.00029,30]
[334294107,1722917438812,-163.561371,0.00029089,2]
[334294109,1722917438822,-163.561371,0.00029216,2]
[334294111,1722917438831,-163.561371,0.00029342,2]
[334294113,1722917438841,-163.561371,0.00029468,2]
[334294115,1722917438850,-163.561371,0.00029595,2]
[334294117,1722917438859,-163.561371,0.00029721,2]
[334294119,1722917438868,-163.561371,0.00029847,2]
[334294121,1722917438878,-163.561371,0.00029974,2]
[334294123,1722917438888,-163.561371,0.000301,2]
[334294125,1722917438898,-163.561371,0.00030226,2]
[334294127,1722917438907,-163.561371,0.00030353,2]
[334294129,1722917438917,-163.561371,0.00030479,2]
[334294131,1722917438926,-154.24,0.000305,31]
[334294133,1722917438935,-163.561371,0.00030605,2]
[334294135,1722917438945,-209.024523,0.00031507,120]
[334294137,1722917438954,-974.52438416,0.00031579,2]
[334294139,1722917438963,-752.47918431,0.00031579,2]
[334294141,1722917438975,-460.12826561,0.000316,2]
[334294144,1722917438985,-150.5,0.00031639,120]
[334294146,1722917438994,-150.5,0.00031639,120]
[334294148,1722917439004,-202.43,0.00031639,7]
[334294149,1722917439013,-150.5,0.00031649,120]
[334294151,1722917439023,-150.5,0.00031649,120]
[334294153,1722917439032,-150.5,0.00031649,7]
[334294155,1722917439042,-150.5,0.00031659,120]
[334294157,1722917439051,-150.5,0.00031659,120]
[334294159,1722917439061,-150.5,0.00031659,7]
[334294161,1722917439070,-500.0,0.00031668,2]
[334294163,1722917439080,-444.1032317,0.00031668,2]
[334294165,1722917439089,-194.27418549,0.00031668,2]
[334294167,1722917439099,-500.0,0.00031668,2]
[334294168,1722917439108,-500.0,0.00031668,2]
[334294170,1722917439118,-500.0,0.00031668,2]
[334294172,1722917439128,-500.0,0.00031668,2]
[334294174,1722917439137,-500.0,0.00031668,2]
[334294176,1722917439147,-333.19539664,0.00031668,2]
[334294178,1722917439156,-222.69,0.00031669,3]
[334294180,1722917439166,-668.12,0.00031669,3]
[334294182,1722917439176,-6443.43,0.00031669,3]
[334294184,1722917439186,-5369.53,0.00031669,3]
[334294186,1722917439195,-999.13744623,0.00031678,2]
[334294188,1722917439205,-178.00633592,0.00031678,2]
[334294190,1722917439215,-500.0,0.00031678,2]
[334294192,1722917439225,-500.0,0.00031678,2]
[334294194,1722917439234,-500.0,0.00031678,2]
[334294196,1722917439244,-500.0,0.00031678,2]
[334294198,1722917439253,-397.44236844,0.00031678,2]
[334294200,1722917439262,-500.0,0.00031678,2]
[334294202,1722917439272,-500.0,0.00031678,2]
[334294203,1722917439281,-600.0,0.00031678,2]
[334294205,1722917439291,-1381.88334825,0.00031679,21]
[334294207,1722917439301,-200000.0,0.00031679,60]
[334294209,1722917439310,-72517.53653386,0.00031679,60]
[334294219,1722917439986,-14026.17643073,0.00031679,60]
[334294220,1722917439999,-26654.60762478,0.00031679,60]
[334294309,1722917443754,-11363.15186729,0.00031679,60]
[334294310,1722917443766,-1294.47924928,0.00031679,60]
[334294348,1722917447027,-10498.975,0.00031679,60]
[334294358,1722918343152,-171.123901,0.00014247,2]
[334294359,1722918343176,-163.205146,0.00014247,2]
[334294360,1722918343198,-182.51633923,0.00019999,2]
[334294361,1722918352115,-906.57785455,0.00019999,2]
[334294362,1722918352138,-205.7911367,0.0002028,2]
[334294363,1722918426100,-228.73282927,0.00019547,2]
[334294364,1722918434308,-849.7302775,0.00019547,2]
[334294365,1722918435126,-13.1146057,0.00019547,2]
[334294366,1722918435148,-337.14914414,0.00020999,2]
[334294367,1722918435169,-63.03813561,0.00021011,2]
[334294368,1722918435196,-146.66713559,0.00021011,2]
[334294369,1722918435217,-271.17458586,0.00021011,2]
[334294370,1722918435238,-154.960527,0.00021602,2]
[334294371,1722918435258,-154.92106328,0.00021609,2]
[334294372,1722918435279,-341.75839454,0.00021642,2]
[334294373,1722918439146,-338.01044862,0.00021642,2]
[334294374,1722918439168,-194.5599409,0.00021642,2]
[334294375,1722918439189,-30.68886641,0.00021916,2]
[334294376,1722918441152,-379.93410241,0.00021916,2]
[334294377,1722918444566,-268.93837073,0.00024581,2]
[334294383,1722918553137,-151.45321302,0.00021805,2]
[334294384,1722918557119,-172.14580138,0.00021805,2]
[334294385,1722918559111,-264.30167197,0.00021805,2]
[334294386,1722918568165,-274.52165485,0.00021805,2]
[334294387,1722918568186,-15.05819726,0.00021906,2]
[334294428,1722918631840,-156.96415589,0.00021805,2]
[334294430,1722918631851,-236.1786625,0.00021906,2]
[334294432,1722918631861,-263.76596977,0.00021906,2]
[334294434,1722918631875,-62.52699321,0.00021906,2]
[334294436,1722918631885,-305.4860693,0.00021906,2]
[334294438,1722918631897,-810.1149959,0.00021906,2]
[334294440,1722918631908,-380.98727375,0.00021906,2]
[334294442,1722918631918,-273.18649696,0.00021906,2]
[334294444,1722918631928,-630.0,0.00021906,2]
[334294445,1722918631938,-635.16875018,0.00021906,2]
[334294446,1722918631949,-154.72922386,0.00021906,2]
[334294447,1722918631959,-2270.79121472,0.00023,2]
[334294448,1722918631969,-302.36509981,0.00024458,6]
[334294449,1722918631980,-151.35402705,0.00024532,2]
[334294450,1722918631990,-496.47398639,0.0002643,2]
[334294460,1722918637859,-676.7785006,0.00021906,2]
[334294461,1722918637869,-549.43994442,0.00021906,2]
[334294462,1722918637879,-365.94835483,0.0002643,2]
[334294463,1722918637890,-862.42234122,0.0002643,2]
[334294464,1722918637902,-881.61577024,0.00026848,2]
[334294465,1722918637911,-166.5452027,0.0002753,2]
[334294466,1722918637921,-171.123901,0.00027884,2]
[334294467,1722918637931,-514.3096815,0.00027975,2]
[334294468,1722918637940,-171.392776,0.00028174,2]
[334294469,1722918637950,-1187.371033,0.00028534,2]
[334294470,1722918637959,-4180.44736332,0.00031369,2]
[334294471,1722918637986,-154.21,0.000315,31]
[334294472,1722918637996,-209.024523,0.00031507,120]
[334294473,1722918638005,-1845.22963065,0.00031583,2]
[334294474,1722918638015,-974.52438416,0.00031584,2]
[334294475,1722918638025,-752.47918431,0.00031584,2]
[334294476,1722918638035,-150.5,0.00031649,120]
[334294477,1722918638045,-150.5,0.00031649,120]
[334294478,1722918638055,-202.43,0.00031654,7]
[334294479,1722918638064,-150.5,0.00031659,120]
[334294481,1722918638074,-150.5,0.00031659,120]
[334294482,1722918638083,-150.5,0.00031664,7]
[334294483,1722918638092,-150.5,0.00031669,120]
[334294484,1722918638101,-150.5,0.00031669,120]
[334294485,1722918638111,-500.0,0.00031672,2]
[334294486,1722918638123,-383.4383911,0.00031672,2]
[334294487,1722918638132,-500.0,0.00031672,2]
[334294488,1722918638142,-500.0,0.00031672,2]
[334294489,1722918638154,-500.0,0.00031672,2]
[334294490,1722918638163,-500.0,0.00031672,2]
[334294491,1722918638173,-444.1032317,0.00031672,2]
[334294492,1722918638182,-333.19539664,0.00031672,2]
[334294493,1722918638191,-500.0,0.00031672,2]
[334294494,1722918638201,-222.69,0.00031674,3]
[334294495,1722918638210,-668.12,0.00031674,3]
[334294496,1722918638219,-6443.43,0.00031674,3]
[334294497,1722918638229,-5369.53,0.00031674,3]
[334294498,1722918638240,-150.5,0.00031674,7]
[334294499,1722918638251,-159.3677657,0.00031678,10]
[334294500,1722918638261,-166.94122165,0.00031679,4]
[334294501,1722918638270,-1073.77489417,0.00031679,2]
[334294502,1722918638279,-284.89127157,0.00031679,3]
[334294503,1722918638288,-999.13744623,0.00031683,2]
[334294504,1722918638298,-500.0,0.00031683,2]
[334294505,1722918638308,-500.0,0.00031683,2]
[334294506,1722918638319,-178.00633592,0.00031683,2]
[334294507,1722918638330,-500.0,0.00031683,2]
[334294508,1722918638340,-500.0,0.00031683,2]
[334294509,1722918638350,-500.0,0.00031683,2]
[334294510,1722918638359,-397.44236844,0.00031683,2]
[334294511,1722918638370,-500.0,0.00031683,2]
[334294512,1722918638381,-500.0,0.00031683,2]
[334294513,1722918638391,-1471.62474441,0.00031684,21]
[334294514,1722918638402,-63645.07329406,0.00031684,60]
[334294515,1722918638413,-176448.5,0.00031684,60]
[334294516,1722918638424,-19293.37625107,0.00031684,60]
[334294517,1722918638438,-17717.35894554,0.00031684,60]
[334294518,1722918638452,-1847.64465184,0.00031684,60]
[334294592,1722918646074,-191.77465919,0.00026552,2]
[334294594,1722918646084,-4474.61,0.00031674,3]
[334294595,1722918646095,-95916.21643801,0.00031684,60]
[334294601,1722918709279,160.404783,0.00014247,2]
[334294607,1722919547278,-163.205146,0.00014247,2]
[334294608,1722919547300,-269.73277317,0.00015712,2]
[334294609,1722919547321,-112.63826509,0.00015746,2]
[334294610,1722919548114,-44.19388305,0.00015746,2]
[334294611,1722919548136,-314.4873663,0.00015952,2]
[334294613,1722919628152,-186.0253114,0.00015746,2]
[334294614,1722919628174,-810.1149959,0.00015851,2]
[334294615,1722919628195,-548.17978988,0.00017019,2]
[334294616,1722919628217,-194.58009581,0.00017019,2]
[334294617,1722919628246,-269.73277317,0.00019086,2]
[334294618,1722919628272,-951.69950854,0.00019999,2]
[334294619,1722919628294,-154.84251865,0.0002,2]
[334294620,1722919628315,-1123.83361799,0.0002,2]
[334294621,1722919628336,-862.42234122,0.00021011,2]
[334294622,1722919628357,-302.15405627,0.00022,2]
[334294623,1722919628378,-300.0,0.00022169,2]
[334294624,1722919628400,-419.62827589,0.0002217,2]
[334294625,1722919631098,-252.24835757,0.00019451,2]
[334294626,1722919639102,-745.93580155,0.00019451,2]
[334294627,1722919644093,-1850.1791054,0.00019451,2]
[334294628,1722919644115,-862.42234122,0.00020999,2]
[334294629,1722919644136,-236.52849062,0.0002217,2]
[334294630,1722919644157,-302.15405627,0.0002222,2]
[334294631,1722919644178,-61.56276949,0.0002244,2]
[334294632,1722919645102,-240.59128678,0.0002244,2]
[334294633,1722919645123,-154.02392974,0.0002266,2]
[334294634,1722919645153,-232.616152,0.0002266,2]
[334294635,1722919645175,-160.404783,0.00025405,2]
[334294636,1722919645197,-77.28044538,0.00026143,2]
[334294637,1722919646175,-98.37853762,0.00026143,2]
[334294638,1722919646197,-259.22188486,0.00026267,2]
[334294639,1722919650113,-598.77406555,0.00026267,2]
[334294640,1722919746183,-160.953917,0.00014247,2]
[334294641,1722919751115,-250.88616028,0.00021906,2]
[334294642,1722919757120,-58.20202956,0.00021906,2]
[334294643,1722919757146,-133.59040576,0.00021916,2]
[334294644,1722919765303,-245.34988532,0.00021916,2]
[334294645,1722919790690,931.0,0.00025,60]
[334294673,1722919832081,-175.07381936,0.00021805,2]
[334294674,1722919832091,-862.42234122,0.00021906,2]
[334294675,1722919832101,-899.05475877,0.00021906,2]
[334294676,1722919832111,-582.65180332,0.00021916,2]
[334294677,1722919832121,-160.953917,0.00025405,2]
[334294678,1722919832131,-166.94122165,0.00026267,2]
[334294679,1722919832141,-170.238506,0.00027618,2]
[334294680,1722919832150,-174.457016,0.00028541,2]
[334294681,1722919832160,-174.457016,0.00030029,2]
[334294682,1722919832170,-150.86877576,0.00031109,2]
[334294683,1722919832179,-2623.42542463,0.00031456,2]
[334294684,1722919832189,-154.21,0.000315,31]
[334294685,1722919832199,-209.024523,0.00031507,120]
[334294686,1722919832209,-1845.22963065,0.00031563,2]
[334294687,1722919832218,-250.82639477,0.00031624,2]
[334294688,1722919832229,-974.52438416,0.00031629,2]
[334294689,1722919832240,-250.82639477,0.00031629,2]
[334294690,1722919832250,-150.5,0.00031655,120]
[334294691,1722919832260,-150.5,0.00031655,120]
[334294692,1722919832270,-500.0,0.00031662,2]
[334294693,1722919832281,-290.03128102,0.00031662,2]
[334294694,1722919832301,-500.0,0.00031662,2]
[334294695,1722919832311,-500.0,0.00031662,2]
[334294696,1722919832320,-500.0,0.00031662,2]
[334294697,1722919832330,-500.0,0.00031662,2]
[334294698,1722919832341,-500.0,0.00031662,2]
[334294699,1722919832352,-500.0,0.00031662,2]
[334294700,1722919832363,-500.0,0.00031662,2]
[334294701,1722919832374,-999.13744623,0.00031663,2]